bitfinex/quotes_ETHUSD_20240719
["timestamp","ask_amount","ask_price","bid_price","bid_amount"]
[1721396950802,3.0,3431.7,3430.6,2.91491]
[1721396951007,2.91401,3431.7,3430.8,2.9147]
[1721396951206,2.91401,3431.7,3430.6,2.91491]
[1721396951207,2.91419,3431.5,3430.6,2.91491]
[1721396951445,0.834211,3431.6,3430.7,0.55]
[1721396951745,2.91426,3431.4,3430.5,2.915]
[1721396952301,3.748311,3431.6,3430.1,7.33]
[1721396952540,5.34203,3431.8,3430.9,2.91465]
[1721396952741,2.91401,3431.7,3430.9,2.91465]
[1721396952946,2.91415,3431.6,3431.0,0.55]
[1721396953107,1.22279445,3431.8,3430.8,0.55]
[1721396953312,1.22279445,3431.8,3430.6,7.33]
[1721396953313,2.91448,3431.2,3430.6,7.33]
[1721396953510,0.582875,3431.1,3430.6,7.33]
[1721396953704,1.22279445,3431.7,3430.7,2.4572]
[1721396953922,2.4544,3432.3,3430.7,2.4572]
[1721396953923,4.13646445,3432.1,3431.0,2.91452]
[1721396954124,2.91393,3431.8,3431.0,2.91452]
[1721396954351,4.13646445,3432.1,3431.3,2.91428]
[1721396954352,1.22279445,3432.1,3431.3,2.91428]
[1721396954554,1.22279445,3432.5,3431.4,0.05827616]
[1721396954848,1.52096391,3432.7,3431.8,2.91386]
[1721396954849,2.91316,3432.7,3431.8,2.91386]
[1721396955049,0.75897665,3432.6,3431.9,0.55]
[1721396955413,3.67221665,3432.6,3431.9,0.55]
[1721396956077,3.67221665,3432.6,3431.7,0.55]
[1721396956363,2.91308,3432.8,3431.9,2.91377]
[1721396956518,2.91308,3432.8,3432.0,0.55]
[1721396956715,2.91317,3432.7,3432.0,0.55]
[1721396956914,2.91317,3432.7,3431.9,0.55]
[1721396957111,2.91299,3432.9,3431.9,0.55]
[1721396957112,0.582616,3432.6,3431.9,0.55]
[1721396957424,2.91281,3433.2,3432.4,2.9134]
[1721396957654,2.91281,3433.2,3432.5,0.55]
[1721396957960,2.91282,3433.1,3432.5,0.55]
[1721396958122,2.91282,3433.1,3432.3,0.55]
[1721396958325,0.582548,3433.0,3432.3,0.55]
[1721396959154,2.91313,3432.8,3432.3,0.55]
[1721396959357,2.91313,3432.8,3432.0,7.33]
[1721396959358,2.868448,3433.0,3432.0,7.33]
[1721396959558,2.91361,3432.2,3432.0,7.33]
[1721396959718,2.91361,3432.2,3431.2,2.9144]
[1721396959719,2.9135,3432.3,3431.1,7.33]
[1721396959912,2.9135,3432.3,3431.0,2.91454]
[1721396959913,2.91375,3432.0,3431.0,2.91454]
[1721396960254,2.91394,3431.8,3430.9,2.91468]
[1721396960456,2.91384,3431.9,3430.9,2.91468]
[1721396960641,2.91406,3431.7,3430.8,2.4688]
[1721396961022,2.91406,3431.7,3430.8,5.38355]
[1721396961244,2.91406,3431.7,3430.9,3.0]
[1721396961555,3.49685,3431.7,3430.9,3.0]
[1721396962086,2.9141,3431.6,3430.9,3.0]
[1721396962286,0.58279,3431.7,3430.7,7.33]
[1721396962454,1.22279445,3431.9,3430.7,7.33]
[1721396962455,1.22279445,3431.8,3430.7,7.33]
[1721396962662,2.91418,3431.5,3430.4,2.91509]
[1721396963390,2.91427,3431.4,3430.3,10.24513]
[1721396963573,2.9144,3431.3,3430.3,7.33]
[1721396964454,2.91444,3431.2,3430.3,7.33]
[1721396964652,0.582871,3431.1,3430.3,7.33]
[1721396964876,0.582871,3431.1,3430.4,0.55]
[1721396965078,3.497381,3431.1,3430.4,0.55]
[1721396965266,2.91435,3431.3,3430.4,0.55]
[1721396965462,2.91435,3431.3,3430.4,3.46504]
[1721396965647,2.91419,3431.5,3430.5,2.91498]
[1721396965849,2.91412,3431.6,3430.6,0.55]
[1721396966050,0.85721789,3431.6,3430.6,0.60829041]
[1721396966288,3.0,3431.8,3431.1,2.91451]
[1721396966488,3.0,3431.8,3431.2,0.55]
[1721396966489,5.91396,3431.8,3431.2,0.55]
[1721396966692,2.91401,3431.7,3431.2,0.55]
[1721396966992,3.0,3431.8,3431.2,0.55]
[1721396966993,3.0,3431.6,3431.2,0.55]
[1721396967293,5.914,3431.7,3431.0,0.55]
[1721396967494,1.00506245,3431.6,3431.0,0.55]
[1721396967792,1.00506245,3431.6,3431.1,2.91445]
[1721396967976,5.91383,3431.9,3431.2,0.55]
[1721396968287,1.22279445,3432.0,3431.3,2.91432]
[1721396968461,2.91369,3432.1,3431.4,0.55]
[1721396968668,0.29135,3432.2,3431.4,2.91418]
[1721396968669,3.20494,3432.2,3431.4,2.91418]
[1721396968865,2.91366,3432.1,3431.5,0.55]
[1721396969097,2.91366,3432.1,3431.2,3.46436]
[1721396969098,0.611851,3432.0,3431.2,3.46436]
[1721396969394,2.91386,3431.9,3431.2,0.55]
[1721396969700,0.611851,3432.0,3431.3,2.91427]
[1721396970008,0.611851,3432.0,3431.4,0.55]
[1721396970487,0.611851,3432.0,3431.2,0.55]
[1721396970488,2.91384,3431.9,3431.2,0.55]
[1721396970650,3.0,3432.1,3431.4,2.91419]
[1721396970651,4.22279445,3432.1,3431.4,2.91419]
[1721396970857,0.29135,3432.2,3430.9,0.55]
[1721396971054,1.22279445,3432.4,3431.4,2.91426]
[1721396971055,2.91345,3432.4,3431.4,2.91426]
[1721396971280,2.91345,3432.4,3431.5,3.46416]
[1721396971877,2.91353,3432.3,3431.5,3.46416]
[1721396972291,2.91358,3432.2,3431.5,0.55]
[1721396972493,2.91358,3432.2,3431.4,0.55]
[1721396972693,0.582691,3432.2,3431.4,3.46424]
[1721396972893,2.91325,3432.6,3431.8,2.91392]
[1721396973134,2.91307,3432.8,3431.9,3.46375]
[1721396973329,1.22279445,3433.0,3432.5,2.91324]
[1721396973610,5.18401,3433.7,3432.6,0.55]
[1721396973611,4.13544445,3433.3,3432.6,0.55]
[1721396973783,3.63239169,3433.2,3432.6,0.55]
[1721396973999,2.91292,3433.0,3432.4,0.55]
[1721396974160,2.91292,3433.0,3432.3,0.55]
[1721396974770,3.63237169,3433.2,3432.3,0.55]
[1721396975077,3.63237169,3433.2,3432.3,2.91343]
[1721396975313,3.56731517,3433.1,3432.4,0.55]
[1721396975481,0.65449517,3433.1,3432.4,3.46339]
[1721396975682,4.13537445,3433.4,3432.4,3.46339]
[1721396975910,4.13537445,3433.4,3432.6,2.91324]
[1721396976226,1.66873398,3433.5,3432.7,3.46315]
[1721396976227,3.0608624,3433.5,3432.7,3.46315]
[1721396976577,3.0608624,3433.5,3432.7,0.55]
[1721396976772,2.91271,3433.3,3432.6,0.55]
[1721396977019,0.93055724,3433.2,3432.5,0.55]
[1721396977179,0.93055724,3433.2,3432.4,0.55]
[1721396977386,2.91288,3433.1,3432.4,0.55]
[1721396977601,2.91288,3433.1,3432.3,0.55]
[1721396977809,2.91288,3433.1,3432.3,3.46347]
[1721396978200,2.91256,3433.4,3432.5,2.91332]
[1721396978408,2.91256,3433.4,3432.6,0.55]
[1721396978617,2.91265,3433.3,3432.6,0.55]
[1721396978782,2.91265,3433.3,3432.1,10.24364]
[1721396978783,2.91288,3433.1,3432.4,0.55]
[1721396978983,2.91288,3433.1,3432.3,0.55]
[1721396979495,2.91288,3433.1,3432.3,3.46349]
[1721396979718,2.91263,3433.4,3432.5,2.91326]
[1721396979922,2.91263,3433.4,3432.6,0.55]
[1721396980114,0.1483824,3433.5,3432.7,0.05825556]
[1721396980287,0.1483824,3433.5,3432.8,0.55]
[1721396980484,0.1483824,3433.5,3433.3,2.91258]
[1721396980799,0.1483824,3433.5,3433.4,0.55]
[1721396981191,0.1483824,3433.5,3433.2,3.46273]
[1721396981390,0.1483824,3433.5,3433.2,0.55]
[1721396981591,0.1483824,3433.5,3433.2,2.91273]
[1721396981792,0.1483824,3433.5,3433.3,0.55]
[1721396982008,0.1483824,3433.5,3433.1,0.55]
[1721396983125,0.1483824,3433.5,3433.0,2.91289]
[1721396983304,0.1483824,3433.5,3433.1,0.55]
[1721396984020,2.91271,3433.3,3432.7,7.33]
[1721396984183,3.0608724,3433.5,3432.7,7.33]
[1721396984392,0.1483824,3433.5,3433.0,2.91289]
[1721396984591,0.1483824,3433.5,3433.2,2.91272]
[1721396984818,0.1483824,3433.5,3433.0,2.91284]
[1721396985334,0.1483824,3433.5,3433.1,2.9128]
[1721396985491,0.1483824,3433.5,3433.2,0.55]
[1721396986117,0.1483824,3433.5,3433.1,0.55]
[1721396986690,0.1483824,3433.5,3433.1,3.4628]
[1721396987813,0.1483824,3433.5,3433.3,2.91263]
[1721396987996,0.1483824,3433.5,3433.4,0.55]
[1721396988533,0.1483824,3433.5,3433.4,4.100103]
[1721396988835,0.1483824,3433.5,3433.4,4.15834712]
[1721396989029,0.1483824,3433.5,3433.4,4.100103]
[1721396989204,0.1483824,3433.5,3433.4,7.012663]
[1721396990330,0.1483824,3433.5,3433.4,12.925223]
[1721396991633,0.1483824,3433.5,3433.4,10.012663]
[1721396992430,0.1483824,3433.5,3433.4,12.925223]
[1721396993427,0.1483824,3433.5,3433.4,10.012663]
[1721396994333,0.1483824,3433.5,3433.4,12.925223]
[1721396994504,0.1483824,3433.5,3433.4,10.012663]
[1721396994704,0.1483824,3433.5,3433.4,12.925223]
[1721396995016,0.1483824,3433.5,3433.4,10.012663]
[1721396996220,0.1483824,3433.5,3433.4,7.100103]
[1721396999409,0.1483824,3433.5,3433.4,10.012663]
[1721396999612,0.1483824,3433.5,3433.4,7.100103]
[1721396999812,0.1483824,3433.5,3433.4,10.012663]
[1721397000458,0.1483824,3433.5,3433.4,7.100103]
[1721397000820,0.1483824,3433.5,3433.4,10.012663]
[1721397001839,0.1483824,3433.5,3433.4,12.925223]
[1721397002041,0.1483824,3433.5,3433.4,15.998223]
[1721397002915,0.1483824,3433.5,3433.4,18.910783]
[1721397003115,0.1483824,3433.5,3433.4,15.998223]
[1721397003116,1e-08,3433.5,3433.4,15.998223]
[1721397006220,1e-08,3433.5,3433.4,12.925223]
[1721397006643,1e-08,3433.5,3433.4,9.462663]
[1721397007549,1e-08,3433.5,3433.4,6.550103]
[1721397007928,1e-08,3433.5,3433.4,9.462663]
[1721397008135,1e-08,3433.5,3433.4,6.550103]
[1721397008533,1e-08,3433.5,3433.2,1.0]
[1721397009055,1e-08,3433.5,3433.4,5.82512]
[1721397010057,1e-08,3433.5,3433.4,0.55]
[1721397010353,1e-08,3433.5,3433.4,6.43336497]
[1721397010559,1e-08,3433.5,3433.4,12.28768]
[1721397010717,1e-08,3433.5,3433.4,14.464528]
[1721397011941,1e-08,3433.5,3433.4,11.551968]
[1721397012151,1e-08,3433.5,3433.4,9.37512]
[1721397013188,1e-08,3433.5,3433.4,6.46256]
[1721397013722,1e-08,3433.5,3433.4,9.37512]
[1721397013927,1e-08,3433.5,3433.4,12.28768]
[1721397014223,1e-08,3433.5,3433.4,9.37512]
[1721397014439,1e-08,3433.5,3433.4,11.011205]
[1721397016459,1e-08,3433.5,3433.4,13.923765]
[1721397016663,1e-08,3433.5,3433.4,11.011205]
[1721397016971,1e-08,3433.5,3433.4,13.923765]
[1721397017528,1e-08,3433.5,3433.4,16.996765]
[1721397017821,1e-08,3433.5,3433.4,19.909325]
[1721397018027,2.2721,3434.9,3434.4,2.91163]
[1721397018293,2.2721,3434.9,3433.8,2.91219]
[1721397018294,2.2721,3434.9,3434.5,3.46161]
[1721397018663,2.2721,3434.9,3434.6,2.91154]
[1721397018865,2.2721,3434.9,3434.7,0.55]
[1721397019280,2.2721,3434.9,3434.4,0.55]
[1721397019687,2.2721,3434.9,3434.5,2.91161]
[1721397019863,2.2721,3434.9,3434.6,0.55]
[1721397020264,2.2721,3434.9,3434.5,3.46162]
[1721397021088,2.2721,3434.9,3434.5,0.55]
[1721397021473,2.2721,3434.9,3434.3,0.55]
[1721397021860,2.790432,3434.9,3434.3,0.55]
[1721397022103,2.91146,3434.7,3434.3,0.55]
[1721397022311,2.91146,3434.7,3434.0,0.55]
[1721397022489,5.701722,3434.9,3434.0,3.46204]
[1721397022796,2.2721,3434.9,3434.1,2.91194]
[1721397023118,2.2721,3434.9,3434.3,2.91179]
[1721397023408,2.91149,3434.7,3434.4,0.55]
[1721397023604,5.18343,3434.9,3434.2,0.55]
[1721397024404,5.18343,3434.9,3434.2,3.46186]
[1721397024693,2.2721,3434.9,3434.2,3.46186]
[1721397025076,2.2721,3434.9,3434.3,2.91179]
[1721397025271,2.2721,3434.9,3434.4,0.55]
[1721397026068,2.2721,3434.9,3434.4,3.46163]
[1721397026683,2.2721,3434.9,3434.5,2.91161]
[1721397026885,2.2721,3434.9,3434.6,0.55]
[1721397027081,4.13388445,3435.2,3434.6,0.55]
[1721397027287,0.56578814,3435.1,3434.6,0.55]
[1721397027625,4.28358259,3435.1,3433.9,2.91213]
[1721397027918,4.28358259,3435.1,3434.0,0.55]
[1721397027919,2.91153,3434.7,3434.0,0.55]
[1721397028465,4.13432445,3434.7,3434.0,3.46205]
[1721397028670,1.22279445,3434.7,3434.0,2.220434]
[1721397028865,5.97193814,3435.1,3434.5,2.91156]
[1721397028866,1.22279445,3435.0,3434.5,2.91156]
[1721397029111,1.52399691,3435.1,3434.6,0.55]
[1721397029112,1.22279445,3435.1,3434.6,0.55]
[1721397029296,1.22279445,3435.0,3434.6,0.55]
[1721397029607,1.22279445,3435.1,3434.7,2.91144]
[1721397029820,1.22279445,3435.2,3434.8,0.55]
[1721397030127,1.22279445,3435.1,3434.8,0.55]
[1721397030403,4.13400445,3435.0,3434.6,0.55]
[1721397030617,1.22030312,3434.8,3434.6,0.55]
[1721397030771,1.22030312,3434.8,3434.3,0.55]
[1721397030969,1.22030312,3434.8,3434.3,3.46179]
[1721397031270,1.22030312,3434.7,3434.3,3.46179]
[1721397031488,1.22030312,3434.7,3434.3,0.55]
[1721397031703,1.22030312,3434.7,3434.1,0.55]
[1721397032369,1.22030312,3434.6,3434.1,3.46196]
[1721397032570,1.22030312,3434.6,3434.2,2.91188]
[1721397032795,1.22030312,3434.6,3434.3,0.55]
[1721397033629,1.22030312,3434.6,3434.2,2.91181]
[1721397033797,1.22030312,3434.6,3434.3,0.55]
[1721397034219,1.22030312,3434.5,3434.3,0.55]
[1721397035148,1.22030312,3434.5,3434.1,3.46196]
[1721397035349,1.22030312,3434.5,3434.2,2.91188]
[1721397035495,1.22030312,3434.5,3434.3,0.55]
[1721397035800,1.22030312,3434.4,3434.1,0.55]
[1721397035998,1.22030312,3434.4,3434.3,2.91176]
[1721397036218,1.22030312,3434.5,3434.4,2.91171]
[1721397036837,1.22030312,3434.5,3434.4,3.46171]
[1721397037141,1.22199101,3434.6,3434.5,2.91163]
[1721397037351,1.22201022,3434.6,3434.5,3.46163]
[1721397037511,1.22201022,3434.7,3434.5,7.153969]
[1721397037691,1.22201022,3434.8,3434.6,0.55]
[1721397037891,1.22201022,3434.7,3434.6,0.55]
[1721397038289,1.22201022,3434.8,3434.6,0.55]
[1721397038711,1.22201022,3434.8,3434.7,2.91146]
[1721397038915,1.22201022,3435.1,3434.6,0.937339]
[1721397039199,1.22201022,3435.0,3434.8,2.91137]
[1721397039713,1.22201022,3435.1,3434.8,2.91137]
[1721397039917,1.22201022,3435.1,3434.6,2.91154]
[1721397040252,1.22201022,3435.0,3434.6,2.91154]
[1721397040451,1.22201022,3435.1,3434.7,0.55]
[1721397040738,1.52741021,3435.2,3435.0,2.9112]
[1721397040952,1.22143199,3435.3,3434.8,3.257514]
[1721397041101,1.22143199,3435.3,3434.9,0.55]
[1721397041534,1.22143199,3435.3,3434.9,4.1331444]
[1721397041841,1.52741021,3435.4,3434.9,0.55]
[1721397041842,1.22143199,3435.2,3434.9,0.55]
[1721397042059,1.22143199,3435.1,3434.9,0.55]
[1721397042274,1.22143199,3435.0,3434.9,0.55]
[1721397042551,1.22143199,3435.1,3434.9,0.55]
[1721397042699,1.22143199,3435.1,3434.7,3.46145]
[1721397042902,1.22143199,3435.1,3434.7,1.187315]
[1721397043100,1.22143199,3435.3,3434.7,0.55]
[1721397043381,1.22143199,3435.3,3434.8,2.91136]
[1721397043647,1.22143199,3435.3,3434.9,0.55]
[1721397043863,1.22143199,3435.2,3434.9,0.55]
[1721397044415,1.22143199,3435.3,3434.9,0.55]
[1721397045044,1.22143199,3435.3,3434.9,3.46127]
[1721397045956,1.22143199,3435.3,3434.9,0.55]
[1721397046110,1.22143199,3435.2,3434.8,0.55]
[1721397046309,1.22143199,3435.1,3434.6,3.46153]
[1721397046645,2.09207316,3435.3,3434.7,2.91144]
[1721397046646,1.22143199,3435.2,3434.7,2.91144]
[1721397046802,1.22143199,3435.1,3434.8,0.55]
[1721397047201,1.22143199,3435.2,3434.8,0.55]
[1721397050303,1.22143199,3435.1,3434.8,0.55]
[1721397050436,1.22143199,3435.2,3434.7,0.55]
[1721397050633,2.09151046,3435.3,3434.7,0.55]
[1721397050634,1.22143199,3435.1,3434.7,0.55]
[1721397051064,1.22143199,3435.1,3434.5,0.55]
[1721397051065,1.22143199,3435.0,3434.5,0.55]
[1721397051269,1.22143199,3435.0,3434.2,10.24186]
[1721397051270,1.22143199,3434.9,3434.2,10.24186]
[1721397051441,1.22143199,3434.8,3434.3,2.91179]
[1721397051648,1.22143199,3434.8,3434.4,2.9117]
[1721397052743,1.22143199,3434.9,3434.6,2.91149]
[1721397053042,1.22143199,3435.0,3434.6,2.91149]
[1721397053245,1.22143199,3435.0,3434.7,0.55]
[1721397053465,1.22143199,3434.9,3434.7,0.55]
[1721397053671,4.43690489,3435.1,3434.7,0.55]
[1721397053672,1.22143199,3434.8,3434.7,0.55]
[1721397053876,1.22143199,3434.8,3434.6,2.91154]
[1721397054085,1.22143199,3434.9,3434.7,0.55]
[1721397054253,1.52578489,3435.1,3434.7,0.55]
[1721397054254,1.22143199,3435.0,3434.7,0.55]
[1721397054453,1.22143199,3434.9,3434.7,0.55]
[1721397054653,1.22143199,3435.0,3434.7,2.91146]
[1721397054853,1.22143199,3435.0,3434.8,0.55]
[1721397055084,1.22143199,3435.1,3434.8,0.55]
[1721397055386,1.22143199,3435.0,3434.8,0.55]
[1721397056276,1.22143199,3435.1,3434.8,0.55]
[1721397056449,1.22143199,3435.1,3434.9,2.91129]
[1721397056654,1.22143199,3435.2,3435.0,0.55]
[1721397057678,1.22143199,3435.4,3435.1,2.91112]
[1721397057880,1.22143199,3435.4,3435.2,0.55]
[1721397058076,2.4109,3435.2,3433.6,0.60043294]
[1721397058278,3.71643199,3435.3,3433.2,1.0]
[1721397058279,1.22094557,3433.7,3433.2,1.0]
[1721397058462,1.22094557,3433.8,3433.6,2.91239]
[1721397058675,5.43518936,3434.9,3433.6,2.91239]
[1721397058676,1.22094557,3434.2,3434.0,2.91205]
[1721397058878,1.83137912,3434.7,3433.6,0.58914415]
[1721397058879,1.22094557,3434.5,3433.6,0.58914415]
[1721397059090,1.22094557,3434.3,3434.0,2.91205]
[1721397059397,1.52614927,3434.5,3434.0,2.91205]
[1721397059398,1.22094557,3434.5,3434.0,2.91205]
[1721397059588,1.22094557,3434.6,3434.1,2.91195]
[1721397060088,1.22094557,3434.6,3434.0,2.91205]
[1721397060276,1.22094557,3434.6,3434.0,3.494485]
[1721397060489,1.22094557,3434.5,3433.7,2.9123]
[1721397060814,1.22094557,3434.5,3433.5,8.28706]
[1721397060815,1.22094557,3434.4,3433.5,8.28706]
[1721397060992,1.22094557,3434.2,3433.5,2.9208]
[1721397061307,1.22094557,3434.3,3433.5,2.9208]
[1721397061469,1.22094557,3434.5,3433.7,2.91228]
[1721397061656,1.22094557,3434.5,3434.0,2.91204]
[1721397061858,1.22094557,3434.5,3433.8,2.91218]
[1721397062093,1.52623342,3434.7,3433.9,2.9121]
[1721397062094,1.22094557,3434.6,3433.9,2.9121]
[1721397062303,1.22094557,3434.6,3434.0,2.91205]
[1721397062509,1.22094557,3434.5,3434.1,0.55]
[1721397062659,1.22094557,3434.5,3433.8,3.46219]
[1721397063293,1.22094557,3434.4,3433.8,0.55]
[1721397063678,1.22094557,3434.5,3433.6,2.8176]
[1721397063865,1.22094557,3434.6,3434.1,2.9119]
[1721397064188,1.52623342,3434.8,3433.6,2.8176]
[1721397064189,1.22094557,3434.8,3434.2,3.4618]
[1721397064392,5.32952,3435.1,3434.2,1.187386]
[1721397064393,1.22094557,3435.1,3434.2,1.187386]
[1721397064599,1.52623342,3435.2,3434.7,2.9114]
[1721397064600,1.22094557,3435.2,3434.7,2.9114]
[1721397064759,1.22094557,3435.4,3434.8,0.55]
[1721397065158,1.22094557,3435.3,3434.6,0.55]
[1721397065581,1.22094557,3435.3,3434.7,2.91145]
[1721397065784,1.22094557,3435.2,3434.8,0.55]
[1721397066303,1.22094557,3435.2,3434.8,3.46137]
[1721397066595,1.22094557,3435.3,3434.8,0.55]
[1721397066805,1.22094557,3435.3,3434.7,0.55]
[1721397066806,1.22094557,3435.2,3434.7,0.55]
[1721397067156,1.22094557,3435.2,3434.7,3.46146]
[1721397067362,1.22094557,3435.2,3434.7,0.55]
[1721397067688,1.22094557,3435.2,3434.0,2.91203]
[1721397067689,3.71594557,3435.0,3434.0,2.91203]
[1721397067893,2.3339,3435.1,3433.8,10.2422]
[1721397067894,1.22094557,3434.9,3433.8,7.33]
[1721397068200,3.85976224,3435.1,3434.8,2.91137]
[1721397068201,1.22094557,3435.1,3434.8,2.91137]
[1721397068404,1.22094557,3435.2,3434.8,2.91137]
[1721397068777,0.27468244,3435.3,3434.4,2.4264]
[1721397068965,1.22094557,3435.4,3434.9,2.91125]
[1721397069167,1.22094557,3435.5,3434.9,2.91125]
[1721397069474,1.22094557,3435.5,3435.0,2.91117]
[1721397069674,1.22094557,3435.5,3434.9,2.91129]
[1721397069873,1.22094557,3435.5,3434.5,0.533824]
[1721397069874,1.22094557,3435.4,3434.5,2.91159]
[1721397070177,1.22094557,3435.3,3434.7,2.91146]
[1721397070696,1.22094557,3435.5,3434.8,2.91132]
[1721397070999,1.22094557,3435.5,3434.4,9.7564]
[1721397071000,2.9111,3435.2,3434.4,7.33]
[1721397071297,1.22094557,3435.0,3434.4,7.33]
[1721397071605,1.22094557,3434.9,3434.4,7.33]
[1721397071831,1.22094557,3434.9,3434.2,1.0]
[1721397071960,2.76965621,3435.0,3434.2,1.0]
[1721397071961,1.22094557,3434.5,3434.2,1.0]
[1721397072165,2.9118,3434.3,3434.2,1.0]
[1721397072484,4.43741656,3434.3,3434.2,1.0]
[1721397072774,5.42182222,3434.3,3434.2,1.0]
[1721397073091,5.422275,3434.3,3434.2,1.0]
[1721397073460,5.11686011,3434.3,3434.2,1.0]
[1721397073888,3.89620566,3434.3,3434.2,1.0]
[1721397074107,0.98440566,3434.3,3434.2,1.0]
[1721397074319,3.89620566,3434.3,3434.2,1.0]
[1721397074765,6.80800566,3434.3,3434.2,1.0]
[1721397074966,8.334075,3434.3,3434.2,1.0]
[1721397075267,6.80800566,3434.3,3434.2,1.0]
[1721397076809,9.71980566,3434.3,3434.2,1.0]
[1721397077020,12.71980566,3434.3,3434.2,1.0]
[1721397077232,15.19890566,3434.3,3434.2,1.0]
[1721397077727,15.19890566,3434.3,3432.2,17.87197]
[1721397077728,5.82478,3433.6,3432.2,7.33]
[1721397077866,10.60078,3433.6,3432.0,2.91372]
[1721397078066,15.43050318,3433.6,3432.0,2.91372]
[1721397078268,18.34183331,3433.6,3431.8,10.24391]
[1721397078541,18.3418229,3433.6,3431.8,10.24391]
[1721397078727,2.91256,3433.5,3431.8,10.24391]
[1721397078872,2.91256,3433.5,3431.7,14.8812]
[1721397078873,2.9134,3432.5,3431.7,2.4012]
[1721397079067,2.9134,3432.5,3431.5,2.91416]
[1721397079321,2.91347,3432.4,3431.4,7.33]
[1721397079817,2.91352,3432.3,3431.4,10.24425]
[1721397079968,3.71415436,3432.8,3431.7,2.91398]
[1721397079969,2.91333,3432.5,3431.7,2.91398]
[1721397080171,2.91333,3432.5,3431.5,4.477903]
[1721397080383,1.52394227,3432.9,3431.5,4.477903]
[1721397080384,2.91341,3432.4,3431.5,4.477903]
[1721397080581,2.91367,3432.1,3431.5,1.563783]
[1721397080873,2.91351,3432.3,3431.5,1.563783]
[1721397081076,2.91376,3432.0,3431.4,7.33]
[1721397081497,3.496274,3432.2,3431.4,7.33]
[1721397082080,2.91342,3432.4,3431.4,7.33]
[1721397082311,2.91307,3432.8,3431.8,2.91389]
[1721397082512,4.8147,3433.2,3431.8,2.91389]
[1721397082513,2.91302,3432.9,3431.8,2.91389]
[1721397082712,2.91302,3432.9,3432.1,2.91366]
[1721397083047,2.91266,3433.3,3432.5,2.91326]
[1721397083190,2.91273,3433.2,3432.3,2.91349]
[1721397083758,2.91273,3433.2,3432.0,7.33]
[1721397084033,2.495,3433.2,3432.0,7.33]
[1721397084242,2.9132,3432.7,3432.0,7.33]
[1721397084752,2.913,3432.9,3432.0,7.33]
[1721397084753,2.91325,3432.6,3432.0,7.33]
[1721397084891,2.91325,3432.6,3431.7,2.91398]
[1721397085100,2.91325,3432.6,3430.4,10.24502]
[1721397085101,2.495,3431.8,3430.2,5.32226]
[1721397085296,2.495,3432.3,3430.2,2.407]
[1721397085297,2.91454,3431.1,3430.2,2.407]
[1721397085655,2.495,3431.2,3430.3,0.08473821]
[1721397085656,3.746989,3431.0,3430.3,0.08473821]
[1721397085795,2.9146,3431.0,3430.3,0.08473821]
[1721397085995,2.4664,3431.5,3429.7,2.3746]
[1721397085996,2.495,3430.8,3429.7,2.3746]
[1721397086195,2.4664,3431.5,3430.0,0.01357083]
[1721397086196,2.495,3431.2,3430.0,0.01357083]
[1721397086398,1.51824179,3432.1,3429.7,2.3746]
[1721397086399,2.495,3431.6,3429.8,0.05829971]
[1721397086647,2.91387,3431.9,3430.9,2.91468]
[1721397086858,2.91387,3431.9,3430.7,2.4264]
[1721397086859,0.582625,3432.6,3431.7,2.91396]
[1721397087072,2.91333,3432.5,3431.5,2.91415]
[1721397087195,2.91356,3432.3,3431.3,2.91428]
[1721397087414,2.91358,3432.2,3431.4,2.91423]
[1721397087617,2.495,3432.4,3431.2,2.91442]
[1721397087853,2.495,3432.4,3431.0,0.534108]
[1721397087854,2.91375,3432.0,3431.0,0.534108]
[1721397088061,2.91375,3432.0,3431.1,3.8093188]
[1721397088356,2.91375,3432.0,3431.2,2.91442]
[1721397088872,2.9135,3432.3,3431.1,0.8948788]
[1721397089178,2.91316,3432.7,3431.8,2.91392]
[1721397089457,2.91316,3432.7,3431.9,2.91377]
[1721397089758,2.91299,3432.9,3431.9,2.91377]
[1721397089968,3.204289,3432.9,3432.0,2.91371]
[1721397090118,2.91307,3432.8,3431.8,2.91392]
[1721397090469,2.91322,3432.7,3431.8,2.91392]
[1721397090616,5.40807,3432.8,3431.8,0.825302]
[1721397090617,2.495,3432.8,3431.8,0.825302]
[1721397090820,2.91205,3434.1,3432.2,2.91355]
[1721397090821,2.3226,3434.1,3432.2,2.91355]
[1721397091034,2.9127,3433.3,3432.3,0.55]
[1721397091321,2.9121,3434.0,3432.4,2.91338]
[1721397091629,2.91191,3434.2,3433.3,2.91263]
[1721397091840,2.91164,3434.5,3433.4,2.91254]
[1721397091841,2.91176,3434.4,3433.4,2.91254]
[1721397092032,0.58234,3434.3,3433.4,2.91254]
[1721397092260,0.58234,3434.3,3433.5,2.91247]
[1721397092565,2.91155,3434.6,3433.8,2.91219]
[1721397092717,2.3342,3435.2,3433.9,2.91211]
[1721397092718,2.91139,3434.8,3433.9,2.91211]
[1721397092923,2.3342,3435.2,3434.1,2.91188]
[1721397093218,2.495,3435.1,3434.1,2.91188]
[1721397093653,2.91127,3435.0,3434.2,2.91186]
[1721397093865,5.24524,3435.2,3433.7,7.33]
[1721397093866,1.065151,3434.9,3433.8,0.05823505]
[1721397094043,2.91104,3435.2,3434.3,2.91175]
[1721397094264,2.91114,3435.1,3434.3,2.91175]
[1721397095466,2.495,3435.5,3433.9,2.91211]
[1721397095683,5.40579,3435.5,3434.6,2.91147]
[1721397097275,5.40579,3435.5,3434.0,0.55]
[1721397097276,2.91089,3435.4,3434.5,2.91162]